lending/lending_fUSD_20260310
["ID","MTS","AMOUNT","RATE_DAILY","PERIOD"]
[408091130,1773136240882,-269.854968,0.00019503,2]
[408091131,1773136240891,-269.854968,0.00019503,2]
[408091132,1773136240901,-229.957382,0.00019503,2]
[408091133,1773136240911,-229.957382,0.00019503,2]
[408091134,1773136240919,-229.957382,0.00019503,2]
[408091135,1773136240929,-151.0,0.00019503,2]
[408091136,1773136240938,-229.957382,0.00019503,2]
[408091137,1773136240948,-244.704497,0.00019503,2]
[408091138,1773136240958,-189.498979,0.00019503,2]
[408091139,1773136240968,-244.704497,0.00019503,2]
[408091140,1773136240977,-244.704497,0.00019503,2]
[408091141,1773136240985,-244.704497,0.00019503,2]
[408091142,1773136240994,-151.0,0.00019503,2]
[408091143,1773136241003,-438.336674,0.00019503,2]
[408091144,1773136241013,-438.336674,0.00019503,2]
[408091145,1773136241022,-438.336674,0.00019503,2]
[408091146,1773136241033,-438.336674,0.00019503,2]
[408091147,1773136241046,-477.848695,0.00019503,2]
[408091148,1773136241055,-477.848695,0.00019503,2]
[408091149,1773136241064,-477.848695,0.00019503,2]
[408091150,1773136241075,-477.848695,0.00019503,2]
[408091151,1773136241084,-151.0,0.00019503,2]
[408091152,1773136241092,-151.0,0.00019503,2]
[408091153,1773136241102,-151.0,0.00019503,2]
[408091154,1773136241114,-172.263771,0.00019503,2]
[408091155,1773136241123,-151.0,0.00019503,2]
[408091156,1773136241132,-151.0,0.00019503,2]
[408091157,1773136241141,-151.0,0.00019503,2]
[408091158,1773136241150,-727.460831,0.00019503,2]
[408091159,1773136241160,-151.0,0.00019503,2]
[408091160,1773136241170,-727.460831,0.00019503,2]
[408091161,1773136241179,-727.460831,0.00019503,2]
[408091162,1773136241189,-727.460831,0.00019503,2]
[408091163,1773136241199,-288.184574,0.00019503,2]
[408091164,1773136241210,-151.0,0.00019503,2]
[408091165,1773136241219,-288.184574,0.00019503,2]
[408091166,1773136241228,-168.440681,0.00019503,2]
[408091167,1773136241237,-288.184574,0.00019503,2]
[408091168,1773136241245,-151.0,0.00019503,2]
[408091169,1773136241254,-168.440681,0.00019503,2]
[408091170,1773136241263,-288.184574,0.00019503,2]
[408091171,1773136241272,-168.440681,0.00019503,2]
[408091172,1773136241282,-188.014998,0.00019503,2]
[408091173,1773136241291,-151.0,0.00019503,2]
[408091174,1773136241300,-168.440681,0.00019503,2]
[408091175,1773136241309,-188.014998,0.00019503,2]
[408091176,1773136241318,-151.0,0.00019503,2]
[408091177,1773136241327,-188.014998,0.00019503,2]
[408091178,1773136241335,-151.0,0.00019503,2]
[408091179,1773136241345,-151.0,0.00019503,2]
[408091180,1773136241354,-188.014998,0.00019503,2]
[408091181,1773136241363,-151.0,0.00019503,2]
[408091182,1773136241372,-151.0,0.00019503,2]
[408091183,1773136241381,-151.0,0.00019503,2]
[408091184,1773136241686,-2032.532973,0.00019503,2]
[408091185,1773136241700,-2032.532973,0.00019503,2]
[408091186,1773136241709,-2032.532973,0.00019503,2]
[408091187,1773136241721,-3022.658643,0.00019503,2]
[408091188,1773136241732,-2032.532973,0.00019503,2]
[408091189,1773136241742,-3022.658643,0.00019503,2]
[408091190,1773136241757,-3022.658643,0.00019503,2]
[408091191,1773136241767,-3022.658643,0.00019503,2]
[408091192,1773136241779,-151.0,0.00019503,2]
[408091193,1773136241794,-152.679086,0.00019503,2]
[408091194,1773136241804,-152.679086,0.00019503,2]
[408091195,1773136241814,-152.679086,0.00019503,2]
[408091196,1773136241824,-152.679086,0.00019503,2]
[408091197,1773136241835,-704.375266,0.00019503,2]
[408091198,1773136241846,-704.375266,0.00019503,2]
[408091199,1773136241856,-704.375266,0.00019503,2]
[408091200,1773136241866,-704.375266,0.00019503,2]
[408091201,1773136241875,-151.0,0.00019503,2]
[408091202,1773136241887,-1166.94574855,0.00019523,2]
[408091203,1773136241899,-500.0,0.00019527,2]
[408091204,1773136241909,-2065.91,0.00019527,2]
[408091205,1773136241919,-500.0,0.00019527,2]
[408091206,1773136241928,-500.0,0.00019527,2]
[408091207,1773136241938,-151.0,0.00019552,2]
[408091208,1773136241949,-151.0,0.00019552,2]
[408091209,1773136241960,-151.0,0.00019552,2]
[408091210,1773136241972,-155.42895,0.00019552,2]
[408091211,1773136241982,-151.0,0.00019552,2]
[408091212,1773136241990,-151.0,0.00019552,2]
[408091213,1773136241999,-1042.0,0.00019552,2]
[408091214,1773136242009,-1342.0,0.00019552,2]
[408091215,1773136242019,-619.0,0.00019552,2]
[408091216,1773136242029,-3505.0,0.00019552,2]
[408091217,1773136242042,-922.0,0.00019552,2]
[408091218,1773136242052,-1213.0,0.00019552,2]
[408091219,1773136242061,-3750.0,0.00019552,2]
[408091220,1773136242070,-5995.0,0.00019552,2]
[408091221,1773136242082,-2461.0,0.00019552,2]
[408091222,1773136242093,-6283.25728515,0.00019562,2]
[408091223,1773136242103,-10000.0,0.00019591,2]
[408091224,1773136242115,-151.0,0.00019591,2]
[408091225,1773136242125,-151.0,0.00019591,2]
[408091226,1773136242135,-151.0,0.00019591,2]
[408091227,1773136242144,-151.0,0.00019591,2]
[408091228,1773136242154,-151.0,0.00019591,2]
[408091229,1773136242164,-151.0,0.00019591,2]
[408091230,1773136242175,-250.021137,0.00019591,2]
[408091231,1773136242184,-154.839094,0.00019591,2]
[408091232,1773136242194,-315.550382,0.00019591,2]
[408091233,1773136242205,-315.550382,0.00019591,2]
[408091234,1773136242215,-315.550382,0.00019591,2]
[408091235,1773136242224,-315.550382,0.00019591,2]
[408091236,1773136242235,-151.0,0.00019591,2]
[408091237,1773136242245,-151.0,0.00019591,2]
[408091238,1773136242255,-151.0,0.00019591,2]
[408091239,1773136242264,-151.0,0.00019591,2]
[408091240,1773136242273,-151.0,0.00019591,2]
[408091241,1773136242282,-151.0,0.00019591,2]
[408091242,1773136242291,-236.91424,0.00019591,2]
[408091243,1773136242301,-151.0,0.00019591,2]
[408091244,1773136242310,-151.0,0.00019591,2]
[408091245,1773136242319,-151.0,0.00019591,2]
[408091246,1773136242328,-164.746908,0.00019591,2]
[408091247,1773136242338,-151.0,0.00019591,2]
[408091248,1773136242347,-514.251,0.000196,2]
[408091249,1773136242356,-151.0,0.00019615,2]
[408091250,1773136242366,-151.0,0.00019615,2]
[408091251,1773136242375,-151.0,0.00019615,2]
[408091252,1773136242385,-165.774675,0.00019615,2]
[408091253,1773136242394,-155.0,0.00019618,2]
[408091254,1773136242404,-2065.91,0.00019622,2]
[408091255,1773136242413,-401.37850293,0.00019625,2]
[408091256,1773136242423,-2065.91,0.00019625,2]
[408091258,1773136242433,-587.0,0.00019631,2]
[408091260,1773136242444,-6283.25728515,0.00019665,2]
[408091262,1773136242454,-500.0,0.00019673,2]
[408091264,1773136242463,-500.0,0.00019673,2]
[408091265,1773136242473,-500.0,0.00019673,2]
[408091267,1773136242483,-500.0,0.00019673,2]
[408091268,1773136242493,-500.0,0.00019673,2]
[408091269,1773136242504,-500.0,0.00019673,2]
[408091270,1773136242514,-151.0,0.00019679,2]
[408091271,1773136242523,-151.0,0.00019679,2]
[408091272,1773136242532,-151.0,0.00019679,2]
[408091273,1773136242542,-151.0,0.00019679,2]
[408091274,1773136242552,-349.193058,0.00019679,2]
[408091275,1773136242561,-151.0,0.00019679,2]
[408091276,1773136242571,-151.0,0.00019679,2]
[408091277,1773136242581,-349.193058,0.00019679,2]
[408091278,1773136242590,-151.0,0.00019679,2]
[408091279,1773136242599,-349.193058,0.00019679,2]
[408091280,1773136242609,-595.69516,0.00019679,2]
[408091281,1773136242618,-151.0,0.00019679,2]
[408091282,1773136242627,-595.69516,0.00019679,2]
[408091283,1773136242637,-349.193058,0.00019679,2]
[408091284,1773136242646,-283.289039,0.00019679,2]
[408091285,1773136242655,-595.69516,0.00019679,2]
[408091286,1773136242665,-595.69516,0.00019679,2]
[408091287,1773136242674,-269.854968,0.00019679,2]
[408091288,1773136242683,-269.854968,0.00019679,2]
[408091289,1773136242694,-269.854968,0.00019679,2]
[408091290,1773136242705,-269.854968,0.00019679,2]
[408091292,1773136242714,-229.957382,0.00019679,2]
[408091294,1773136242722,-229.957382,0.00019679,2]
[408091296,1773136242731,-229.957382,0.00019679,2]
[408091298,1773136242740,-151.0,0.00019679,2]
[408091300,1773136242750,-229.957382,0.00019679,2]
[408091301,1773136242759,-244.704497,0.00019679,2]
[408091302,1773136242768,-244.704497,0.00019679,2]
[408091303,1773136242777,-244.704497,0.00019679,2]
[408091304,1773136242786,-244.704497,0.00019679,2]
[408091305,1773136242795,-165.519029,0.00019679,2]
[408091306,1773136242804,-438.336674,0.00019679,2]
[408091307,1773136242814,-438.336674,0.00019679,2]
[408091308,1773136242823,-438.336674,0.00019679,2]
[408091309,1773136242832,-438.336674,0.00019679,2]
[408091310,1773136242843,-477.848695,0.00019679,2]
[408091311,1773136242853,-477.848695,0.00019679,2]
[408091312,1773136242862,-477.848695,0.00019679,2]
[408091313,1773136242871,-477.848695,0.00019679,2]
[408091314,1773136242880,-151.0,0.00019679,2]
[408091315,1773136242890,-151.0,0.00019679,2]
[408091316,1773136242899,-187.739181,0.00019679,2]
[408091317,1773136242908,-151.0,0.00019679,2]
[408091318,1773136242918,-151.0,0.00019679,2]
[408091319,1773136242927,-151.0,0.00019679,2]
[408091320,1773136242937,-727.460831,0.00019679,2]
[408091321,1773136242947,-151.0,0.00019679,2]
[408091322,1773136242956,-727.460831,0.00019679,2]
[408091323,1773136242965,-727.460831,0.00019679,2]
[408091324,1773136242974,-727.460831,0.00019679,2]
[408091325,1773136242983,-288.184574,0.00019679,2]
[408091326,1773136242993,-151.0,0.00019679,2]
[408091327,1773136243002,-288.184574,0.00019679,2]
[408091328,1773136243011,-168.440681,0.00019679,2]
[408091329,1773136243020,-288.184574,0.00019679,2]
[408091330,1773136243030,-151.0,0.00019679,2]
[408091331,1773136243044,-168.440681,0.00019679,2]
[408091332,1773136243054,-288.184574,0.00019679,2]
[408091333,1773136243064,-168.440681,0.00019679,2]
[408091334,1773136243074,-188.014998,0.00019679,2]
[408091335,1773136243085,-151.0,0.00019679,2]
[408091336,1773136243095,-168.440681,0.00019679,2]
[408091337,1773136243105,-188.014998,0.00019679,2]
[408091338,1773136243116,-151.0,0.00019679,2]
[408091339,1773136243126,-188.014998,0.00019679,2]
[408091340,1773136243136,-151.0,0.00019679,2]
[408091341,1773136243147,-151.0,0.00019679,2]
[408091342,1773136243157,-188.014998,0.00019679,2]
[408091343,1773136243167,-151.0,0.00019679,2]
[408091344,1773136243176,-151.0,0.00019679,2]
[408091345,1773136243185,-259.401714,0.00019679,2]
[408091346,1773136243194,-2032.532973,0.00019679,2]
[408091347,1773136243204,-2032.532973,0.00019679,2]
[408091348,1773136243213,-2032.532973,0.00019679,2]
[408091349,1773136243222,-3022.658643,0.00019679,2]
[408091350,1773136243231,-2032.532973,0.00019679,2]
[408091351,1773136243241,-3022.658643,0.00019679,2]
[408091352,1773136243250,-3022.658643,0.00019679,2]
[408091353,1773136243260,-3022.658643,0.00019679,2]
[408091354,1773136243269,-151.0,0.00019679,2]
[408091355,1773136243278,-151.0,0.00019679,2]
[408091356,1773136243288,-151.0,0.00019679,2]
[408091357,1773136243297,-152.679086,0.00019679,2]
[408091358,1773136243306,-152.679086,0.00019679,2]
[408091359,1773136243315,-152.679086,0.00019679,2]
[408091361,1773136243325,-152.679086,0.00019679,2]
[408091363,1773136243334,-199.540689,0.00019679,2]
[408091364,1773136243343,-151.0,0.00019679,2]
[408091365,1773136243352,-207.334735,0.00019679,2]
[408091366,1773136243361,-151.0,0.00019679,2]
[408091369,1773136243371,-151.0,0.00019679,2]
[408091372,1773136243380,-278.204752,0.00019679,2]
[408091375,1773136243390,-1252.128738,0.00019679,2]
[408091377,1773136243399,-1252.128738,0.00019679,2]
[408091380,1773136243408,-155.738127,0.00019679,2]
[408091381,1773136243418,-1252.128738,0.00019679,2]
[408091382,1773136243427,-155.738127,0.00019679,2]
[408091383,1773136243436,-1252.128738,0.00019679,2]
[408091384,1773136243445,-155.738127,0.00019679,2]
[408091385,1773136243454,-155.738127,0.00019679,2]
[408091386,1773136243464,-151.0,0.00019679,2]
[408091387,1773136243474,-151.0,0.00019679,2]
[408091388,1773136243483,-151.0,0.00019679,2]
[408091389,1773136243493,-151.0,0.00019679,2]
[408091390,1773136243503,-151.0,0.00019679,2]
[408091391,1773136243512,-704.375266,0.00019679,2]
[408091392,1773136243521,-704.375266,0.00019679,2]
[408091393,1773136243530,-704.375266,0.00019679,2]
[408091394,1773136243539,-704.375266,0.00019679,2]
[408091395,1773136243549,-151.0,0.00019679,2]
[408091396,1773136243558,-4515.12874227,0.00019679,2]
[408091397,1773136243579,-621.86898814,0.00019679,2]
[408091398,1773136243590,-15217.80290295,0.00019679,2]
[408091399,1773136243601,-568.9,0.00019679,2]
[408091400,1773136243618,-1393.20373301,0.00019679,2]
[408091402,1773136243731,-5287.0878836,0.00019226,2]
[408091403,1773136243742,-9234.8006248,0.00019226,2]
[408091404,1773136243752,-500.0,0.00019502,2]
[408091405,1773136243761,-622.0,0.00019669,5]
[408091406,1773136243771,-5142.69306357,0.00019679,2]
[408091407,1773136243780,-168.0,0.00019725,2]
[408091408,1773136243789,-787.0,0.00019726,2]
[408091409,1773136243798,-2065.91,0.00019738,2]
[408091410,1773136243807,-245.921461,0.00019738,2]
[408091411,1773136243818,-151.0,0.00019738,2]
[408091412,1773136243827,-265.901726,0.00019738,2]
[408091413,1773136243836,-151.0,0.00019738,2]
[408091414,1773136243845,-151.0,0.00019738,2]
[408091415,1773136243855,-6283.25728515,0.00019769,2]
[408091416,1773136243864,-153.59002682,0.0001978,2]
[408091417,1773136243873,-150.35540241,0.00019782,2]
[408091418,1773136243882,-150.0,0.00019782,2]
[408091419,1773136243891,-150.0,0.00019782,2]
[408091420,1773136243901,-150.0,0.00019782,2]
[408091421,1773136243910,-151.0,0.00019786,2]
[408091422,1773136243919,-151.0,0.00019786,2]
[408091423,1773136243929,-151.0,0.00019786,2]
[408091424,1773136243937,-151.0,0.00019786,2]
[408091425,1773136243946,-151.0,0.00019786,2]
[408091426,1773136243956,-185.079486,0.00019786,2]
[408091427,1773136243965,-445.0,0.000198,2]
[408091428,1773136243974,-843.0,0.00019828,2]
[408091429,1773136243983,-153.534323,0.00019852,2]
[408091430,1773136243992,-151.0,0.00019852,2]
[408091431,1773136244002,-151.0,0.00019852,2]
[408091432,1773136244011,-315.550382,0.00019852,2]
[408091433,1773136244020,-315.550382,0.00019852,2]
[408091434,1773136244029,-315.550382,0.00019852,2]
[408091435,1773136244043,-315.550382,0.00019852,2]
[408091436,1773136244053,-151.0,0.00019852,2]
[408091437,1773136244062,-151.0,0.00019852,2]
[408091438,1773136244071,-1000.0,0.00019858,2]
[408091439,1773136244081,-151.0,0.00019864,2]
[408091440,1773136244090,-151.0,0.00019864,2]
[408091441,1773136244099,-151.0,0.00019864,2]
[408091442,1773136244108,-151.0,0.00019864,2]
[408091443,1773136244117,-1279.93,0.00019864,2]
[408091444,1773136244126,-359.98487394,0.00019869,2]
[408091445,1773136244135,-4831.87617414,0.0001987,2]
[408091446,1773136244144,-222.52962526,0.0001987,3]
[408091447,1773136244153,-791.77913084,0.0001987,2]
[408091448,1773136244163,-909.87067736,0.0001987,2]
[408091449,1773136244172,-151.0,0.00019871,2]
[408091450,1773136244182,-151.0,0.00019871,2]
[408091451,1773136244191,-151.0,0.00019871,2]
[408091452,1773136244200,-2065.91,0.00019871,2]
[408091453,1773136244209,-151.0,0.00019872,2]
[408091454,1773136244218,-6283.25728515,0.00019872,2]
[408091455,1773136244227,-358.0,0.00019877,2]
[408091456,1773136244237,-200.0,0.00019882,2]
[408091457,1773136244245,-200.0,0.00019882,2]
[408091458,1773136244254,-150.0,0.00019882,4]
[408091459,1773136244264,-150.0,0.00019882,4]
[408091460,1773136244273,-150.0,0.00019882,4]
[408091461,1773136244282,-150.0,0.00019882,4]
[408091462,1773136244291,-150.0,0.00019882,4]
[408091463,1773136244300,-150.0,0.00019882,4]
[408091464,1773136244309,-150.0,0.00019882,4]
[408091465,1773136244318,-150.0,0.00019882,4]
[408091466,1773136244326,-150.0,0.00019882,4]
[408091467,1773136244335,-150.0,0.00019882,4]
[408091468,1773136244344,-150.0,0.00019882,4]
[408091469,1773136244353,-151.0,0.00019882,2]
[408091470,1773136244362,-151.0,0.00019882,2]
[408091471,1773136244371,-349.193058,0.00019882,2]
[408091472,1773136244380,-151.0,0.00019882,2]
[408091473,1773136244390,-284.144415,0.00019882,2]
[408091474,1773136244399,-349.193058,0.00019882,2]
[408091475,1773136244408,-151.0,0.00019882,2]
[408091476,1773136244417,-349.193058,0.00019882,2]
[408091477,1773136244427,-595.69516,0.00019882,2]
[408091478,1773136244436,-151.0,0.00019882,2]
[408091479,1773136244446,-595.69516,0.00019882,2]
[408091480,1773136244455,-349.193058,0.00019882,2]
[408091481,1773136244465,-595.69516,0.00019882,2]
[408091482,1773136244474,-595.69516,0.00019882,2]
[408091483,1773136244484,-269.854968,0.00019882,2]
[408091484,1773136244493,-269.854968,0.00019882,2]
[408091485,1773136244502,-269.854968,0.00019882,2]
[408091486,1773136244512,-269.854968,0.00019882,2]
[408091487,1773136244521,-229.957382,0.00019882,2]
[408091488,1773136244530,-229.957382,0.00019882,2]
[408091489,1773136244539,-229.957382,0.00019882,2]
[408091490,1773136244549,-279.01536,0.00019882,2]
[408091491,1773136244558,-229.957382,0.00019882,2]
[408091492,1773136244567,-244.704497,0.00019882,2]
[408091493,1773136244576,-244.704497,0.00019882,2]
[408091494,1773136244585,-244.704497,0.00019882,2]
[408091495,1773136244594,-244.704497,0.00019882,2]
[408091496,1773136244603,-438.336674,0.00019882,2]
[408091497,1773136244612,-438.336674,0.00019882,2]
[408091498,1773136244621,-438.336674,0.00019882,2]
[408091499,1773136244630,-438.336674,0.00019882,2]
[408091500,1773136244639,-477.848695,0.00019882,2]
[408091501,1773136244648,-477.848695,0.00019882,2]
[408091502,1773136244657,-477.848695,0.00019882,2]
[408091503,1773136244666,-477.848695,0.00019882,2]
[408091504,1773136244675,-151.0,0.00019882,2]
[408091505,1773136244684,-151.0,0.00019882,2]
[408091506,1773136244694,-500.0,0.00019882,2]
[408091507,1773136244702,-151.0,0.00019882,2]
[408091508,1773136244711,-151.0,0.00019882,2]
[408091509,1773136244721,-727.460831,0.00019882,2]
[408091510,1773136244730,-727.460831,0.00019882,2]
[408091511,1773136244739,-727.460831,0.00019882,2]
[408091512,1773136244747,-727.460831,0.00019882,2]
[408091513,1773136244756,-288.184574,0.00019882,2]
[408091514,1773136244766,-288.184574,0.00019882,2]
[408091515,1773136244775,-168.440681,0.00019882,2]
[408091516,1773136244784,-288.184574,0.00019882,2]
[408091517,1773136244793,-224.255799,0.00019882,2]
[408091518,1773136244802,-168.440681,0.00019882,2]
[408091519,1773136244811,-288.184574,0.00019882,2]
[408091520,1773136244821,-168.440681,0.00019882,2]
[408091521,1773136244831,-188.014998,0.00019882,2]
[408091522,1773136244840,-151.0,0.00019882,2]
[408091523,1773136244850,-168.440681,0.00019882,2]
[408091524,1773136244859,-188.014998,0.00019882,2]
[408091525,1773136244870,-151.0,0.00019882,2]
[408091526,1773136244879,-188.014998,0.00019882,2]
[408091527,1773136244889,-153.713184,0.00019882,2]
[408091528,1773136244898,-151.0,0.00019882,2]
[408091530,1773136244908,-188.014998,0.00019882,2]
[408091531,1773136244917,-151.0,0.00019882,2]
[408091533,1773136244926,-151.0,0.00019882,2]
[408091534,1773136244935,-2032.532973,0.00019882,2]
[408091536,1773136244944,-2032.532973,0.00019882,2]
[408091537,1773136244953,-2032.532973,0.00019882,2]
[408091538,1773136244963,-3022.658643,0.00019882,2]
[408091539,1773136244972,-2032.532973,0.00019882,2]
[408091540,1773136244981,-3022.658643,0.00019882,2]
[408091541,1773136244991,-3022.658643,0.00019882,2]
[408091542,1773136245000,-3022.658643,0.00019882,2]
[408091543,1773136245009,-152.679086,0.00019882,2]
[408091544,1773136245018,-152.679086,0.00019882,2]
[408091545,1773136245027,-152.679086,0.00019882,2]
[408091546,1773136245038,-152.679086,0.00019882,2]
[408091547,1773136245048,-151.0,0.00019882,2]
[408091548,1773136245057,-151.0,0.00019882,2]
[408091549,1773136245067,-1252.128738,0.00019882,2]
[408091550,1773136245078,-1252.128738,0.00019882,2]
[408091551,1773136245307,-155.738127,0.00019882,2]
[408091552,1773136245318,-1252.128738,0.00019882,2]
[408091553,1773136245327,-155.738127,0.00019882,2]
[408091554,1773136245336,-1252.128738,0.00019882,2]
[408091555,1773136245345,-155.738127,0.00019882,2]
[408091556,1773136245354,-155.738127,0.00019882,2]
[408091557,1773136245363,-151.0,0.00019882,2]
[408091558,1773136245372,-151.0,0.00019882,2]
[408091559,1773136245381,-151.0,0.00019882,2]
[408091560,1773136245390,-301.24004,0.00019882,2]
[408091561,1773136245400,-151.0,0.00019882,2]
[408091562,1773136245409,-704.375266,0.00019882,2]
[408091563,1773136245418,-704.375266,0.00019882,2]
[408091564,1773136245428,-704.375266,0.00019882,2]
[408091565,1773136245437,-704.375266,0.00019882,2]
[408091566,1773136245446,-151.0,0.00019882,2]
[408091568,1773136245455,-25000.0,0.00019882,3]
[408091570,1773136245465,-150.0,0.00019886,4]
[408091572,1773136245474,-150.0,0.00019889,4]
[408091574,1773136245483,-150.0,0.0001989,4]
[408091575,1773136245493,-500.0,0.0001989,2]
[408091576,1773136245502,-500.0,0.0001989,2]
[408091578,1773136245511,-150.0,0.0001989,4]
[408091579,1773136245520,-151.0,0.00019891,2]
[408091580,1773136245529,-151.0,0.00019891,2]
[408091581,1773136245538,-151.0,0.00019891,2]
[408091582,1773136245547,-25000.0,0.00019891,3]
[408091583,1773136245556,-150.0,0.00019892,4]
[408091584,1773136245565,-150.0,0.00019893,4]
[408091585,1773136245574,-150.0,0.00019893,4]
[408091586,1773136245583,-151.0,0.00019894,2]
[408091587,1773136245592,-151.0,0.00019894,2]
[408091588,1773136245601,-151.0,0.00019894,2]
[408091589,1773136245609,-151.0,0.00019894,2]
[408091590,1773136245618,-151.0,0.00019894,2]
[408091591,1773136245627,-592.1,0.00019894,2]
[408091592,1773136245636,-150.0,0.00019897,4]
[408091593,1773136245645,-150.0,0.00019897,4]
[408091594,1773136245654,-150.0,0.00019899,4]
[408091595,1773136245663,-150.0,0.00019899,4]
[408091596,1773136245673,-500.0,0.00019899,2]
[408091597,1773136245683,-500.0,0.00019899,2]
[408091598,1773136245692,-500.0,0.00019899,2]
[408091599,1773136245703,-500.0,0.00019899,2]
[408091600,1773136245713,-500.0,0.00019899,2]
[408091601,1773136245723,-500.0,0.00019899,2]
[408091602,1773136245733,-507.77819291,0.00019899,2]
[408091603,1773136245744,-500.0,0.00019899,2]
[408091604,1773136245755,-500.0,0.00019899,2]
[408091605,1773136245764,-501.77338633,0.00019899,2]
[408091606,1773136245774,-500.0,0.00019899,2]
[408091607,1773136245785,-151.0,0.00019899,2]
[408091608,1773136245795,-151.0,0.00019899,2]
[408091609,1773136245805,-2065.91,0.00019899,2]
[408091610,1773136245814,-153.760782,0.00019899,2]
[408091611,1773136245823,-195.290384,0.00019899,2]
[408091612,1773136245832,-315.550382,0.00019899,2]
[408091613,1773136245842,-315.550382,0.00019899,2]
[408091614,1773136245851,-315.550382,0.00019899,2]
[408091615,1773136245862,-315.550382,0.00019899,2]
[408091616,1773136245872,-151.0,0.00019899,2]
[408091617,1773136245882,-151.0,0.00019899,2]
[408091618,1773136245892,-25000.0,0.000199,3]
[408091619,1773136245901,-602.19,0.000199,7]
[408091620,1773136245922,-151.0,0.000199,2]
[408091621,1773136245932,-151.0,0.000199,2]
[408091622,1773136245942,-151.0,0.000199,2]
[408091624,1773136245952,-12759.96583047,0.000199,3]
[408091626,1773136245961,-151.0,0.000199,2]
[408091627,1773136245971,-150.0,0.00019901,4]
[408091628,1773136245981,-150.0,0.00019902,4]
[408091629,1773136245992,-150.0,0.00019903,4]
[408091630,1773136246004,-150.0,0.00019904,4]
[408091631,1773136246015,-150.0,0.00019905,4]
[408091632,1773136246025,-150.0,0.00019906,4]
[408091633,1773136246038,-150.0,0.00019906,4]
[408091634,1773136246047,-150.0,0.00019907,4]
[408091635,1773136246057,-150.0,0.00019909,4]
[408091636,1773136246068,-150.0,0.00019912,4]
[408091637,1773136246079,-150.0,0.00019912,4]
[408091638,1773136246088,-150.0,0.00019912,4]
[408091639,1773136246098,-150.0,0.00019912,4]
[408091640,1773136246108,-150.0,0.00019914,4]
[408091641,1773136246117,-150.0,0.00019916,4]
[408091642,1773136246127,-150.0,0.00019916,4]
[408091643,1773136246136,-150.0,0.00019916,4]
[408091644,1773136246146,-1600.0,0.00019917,2]
[408091645,1773136246155,-353.71406921,0.00019917,4]
[408091646,1773136246165,-150.0,0.00019919,4]
[408091647,1773136246175,-150.0,0.0001992,4]
[408091648,1773136246185,-150.0,0.00019921,4]
[408091649,1773136246194,-150.0,0.00019924,4]
[408091650,1773136246205,-150.0,0.00019924,4]
[408091651,1773136246214,-150.0,0.00019925,4]
[408091652,1773136246223,-151.0,0.00019926,2]
[408091653,1773136246232,-150.0,0.00019926,4]
[408091654,1773136246242,-150.0,0.00019928,4]
[408091655,1773136246252,-150.0,0.00019929,4]
[408091656,1773136246262,-150.0,0.00019929,4]
[408091657,1773136246272,-150.0,0.00019931,4]
[408091658,1773136246282,-150.0,0.00019931,4]
[408091659,1773136246291,-150.0,0.00019933,4]
[408091660,1773136246301,-150.0,0.00019933,4]
[408091661,1773136246311,-150.0,0.00019934,4]